[Event "48th Indian U15-ch Open 2023"]
[Site "Jalgaon"]
[Date "2024.02.04"]
[Round "11.1"]
[White "Daksh Goyal"]
[Black "Jihan Tejas Shah"]
[Result "1/2-1/2"]
[ECO "B38"]
[WhiteElo "1814"]
[BlackElo "1891"]
[Annotator "NA RC"]
[PlyCount "75"]
[EventDate "2023.12.30"]
[EventType "swiss"]
[EventCountry "IND"]
[SourceTitle "playchess.com"]
[Source "ChessBase"]
[SourceQuality "1"]
[TimeControl "5400+30"]

1. e4 {[%emt 0:01:19]} c5 {[%emt 0:00:10]} 2. Nf3 {[%emt 0:00:16]} Nc6 {[%emt 0:00:04]} 3. d4 {[%emt 0:00:17]} cxd4 {[%emt 0:00:03]} 4. Nxd4 {[%emt 0:00:06]} g6 {[%emt 0:00:02]} 5. c4 {[%emt 0:00:38]} Bg7 {[%emt 0:00:05]} 6. Be3 {[%emt 0:00:19]} Qb6 {[%emt 0:00:03]} 7. Nb3 {[%emt 0:00:29]} Qd8 {[%emt 0:00:03]} 8. Qd2 {[%emt 0:02:23]} Nf6 {[%emt 0:00:05]} 9. f3 {[%emt 0:00:26]} O-O {[%emt 0:00:10]} 10. Nc3 {[%emt 0:00:45]} d6 {[%emt 0:00:07]} 11. Be2 {[%emt 0:00:16]} a5 {[%emt 0:00:04]} 12. O-O {[%emt 0:01:13]} a4 {[%emt 0:01:27]} 13. Nd4 {[%emt 0:00:14]} Nxd4 {[%emt 0:00:30]} 14. Bxd4 {[%emt 0:00:03]} Qa5 {[%emt 0:00:24]} 15. Rad1 {[%emt 0:01:54]} Be6 {[%emt 0:01:35]} 16. f4 {[%emt 0:08:01]} Rfc8 {[%emt 0:00:50]} 17. b3 {[%emt 0:03:42]} axb3 {[%emt 0:01:37]} 18. axb3 {[%emt 0:00:13]} Kf8 {[%emt 0:30:29]} 19. f5 {[%emt 0:32:00]} Bd7 {[%emt 0:00:21]} 20. Qf4 {[%emt 0:07:28]} Bc6 {[%emt 0:03:46]} 21. h4 {[%emt 0:10:14]} Kg8 {[%emt 0:02:22]} 22. Nd5 {[%emt 0:06:13]} Bxd5 {[%emt 0:00:26]} 23. exd5 {[%emt 0:00:14]} Rf8 {[%emt 0:03:34]} 24. fxg6 {[%emt 0:03:46]} hxg6 {[%emt 0:02:21]} 25. Bg4 {[%emt 0:03:21]} Qb4 {[%emt 0:06:32]} 26. h5 {[%emt 0:05:51]} gxh5 {[%emt 0:01:29]} 27. Bxf6 {[%emt 0:05:12]} Bxf6 {[%emt 0:01:00]} 28. Bf5 {[%emt 0:00:57]} Kg7 {[%emt 0:02:16]} 29. Qg3+ {[%emt 0:03:30]} Kh6 {[%emt 0:00:12]} 30. Qe3+ {[%emt 0:00:51]} Bg5 {[%emt 0:00:22]} 31. Qh3 {[%emt 0:00:22]} Qb6+ {[%emt 0:04:10]} 32. Kh1 {[%emt 0:00:14]} Rh8 {[%emt 0:00:51]} 33. Bb1 {[%emt 0:00:55]} Bf6 {[%emt 0:01:09]} 34. g4 {[%emt 0:01:07]} Kg7 $2 {[%emt 0:01:40]} (34... Rag8 $1 $15 35. Rf5 (35. gxh5 $2 {loses.} Rg5 $19) (35. Qxh5+ $2 {too greedy.} Kg7 $19) 35... Rg5) 35. g5 {[%emt 0:00:13]} Be5 {[%emt 0:03:53]} 36. Rf3 {[%emt 0:00:59]} ({But not} 36. Qf5 $6 Raf8 $16) 36... Raf8 {[%emt 0:01:17]} 37. Qf5 {[%emt 0:01:40]} Qd8 {[%emt 0:03:20]} 38. Rdf1 $18 {[%emt 0:00:27]} 1/2-1/2

[Event "48th Indian U15-ch Open 2023"]
[Site "Jalgaon"]
[Date "2024.02.04"]
[Round "11.2"]
[White "Mayank Chakraborty"]
[Black "Bhoir Paras Dilip"]
[Result "1-0"]
[ECO "D45"]
[WhiteElo "2403"]
[BlackElo "1808"]
[Annotator "RC"]
[PlyCount "145"]
[EventDate "2023.12.30"]
[EventType "swiss"]
[EventCountry "IND"]
[SourceTitle "playchess.com"]
[Source "ChessBase"]
[SourceQuality "1"]
[TimeControl "5400+30"]

1. d4 {[%emt 0:00:02]} d5 {[%emt 0:00:05]} 2. c4 {[%emt 0:00:04]} e6 {[%emt 0:00:03]} 3. Nc3 {[%emt 0:00:06]} c6 {[%emt 0:00:03]} 4. e3 {[%emt 0:00:07]} Nf6 {[%emt 0:00:08]} 5. Nf3 {[%emt 0:00:06]} Nbd7 {[%emt 0:00:06]} 6. Be2 {[%emt 0:00:05]} Bd6 {[%emt 0:00:23]} 7. O-O {[%emt 0:00:08]} O-O {[%emt 0:00:08]} 8. b3 {[%emt 0:00:04]} b6 {[%emt 0:00:46]} 9. Bb2 {[%emt 0:00:06]} Bb7 {[%emt 0:00:43]} 10. Rc1 {[%emt 0:00:17]} Qe7 {[%emt 0:05:37]} 11. Bd3 {[%emt 0:03:49]} c5 {[%emt 0:08:57]} 12. cxd5 {[%emt 0:01:15]} exd5 {[%emt 0:00:11]} 13. Bf5 {[%emt 0:10:10]} Rfe8 {[%emt 0:10:12]} 14. Qc2 {[%emt 0:12:08]} g6 {[%emt 0:10:29]} 15. Bh3 {[%emt 0:03:12]} Ne4 {[%emt 0:07:09]} 16. dxc5 {[%emt 0:05:17]} bxc5 {[%emt 0:02:22]} 17. Nxe4 {[%emt 0:02:43]} dxe4 {[%emt 0:00:11]} 18. Qc3 {[%emt 0:01:15]} Ne5 {[%emt 0:05:12]} 19. Nxe5 {[%emt 0:00:07]} Bxe5 {[%emt 0:00:03]} 20. Qxe5 {[%emt 0:00:05]} Qxe5 {[%emt 0:00:04]} 21. Bxe5 {[%emt 0:00:02]} Rxe5 {[%emt 0:00:05]} 22. Rfd1 {[%emt 0:00:24]} Kg7 {[%emt 0:02:09]} 23. Rd7 {[%emt 0:06:10]} Bc8 {[%emt 0:04:29]} 24. Rc7 {[%emt 0:00:10]} Bxh3 {[%emt 0:00:10]} 25. gxh3 {[%emt 0:00:01]} Rd8 {[%emt 0:06:54]} 26. R1xc5 {[%emt 0:01:22]} Re6 {[%emt 0:10:16]} 27. R7c6 {[%emt 0:05:05]} Re7 {[%emt 0:00:14]} 28. Kg2 {[%emt 0:05:29]} Rd1 {[%emt 0:03:46]} 29. Rc1 {[%emt 0:01:28]} Rd2 {[%emt 0:05:02]} 30. R1c2 {[%emt 0:00:22]} Rd1 {[%emt 0:00:09]} 31. Rc7 {[%emt 0:03:41]} Re5 {[%emt 0:00:25]} 32. h4 {[%emt 0:00:42]} Rh5 {[%emt 0:01:18]} 33. Rxa7 {[%emt 0:00:51]} Rxh4 {[%emt 0:03:26]} 34. Rcc7 {[%emt 0:01:09]} Rg4+ {[%emt 0:00:22]} 35. Kh3 {[%emt 0:00:05]} h5 {[%emt 0:00:20]} 36. Rxf7+ {[%emt 0:00:11]} Kh6 {[%emt 0:00:04]} 37. Rf4 {[%emt 0:11:36]} Rdg1 {[%emt 0:02:01]} 38. b4 {[%emt 0:02:39]} Kg5 {[%emt 0:01:18]} 39. Ra5+ {[%emt 0:00:39]} Kh6 {[%emt 0:00:05]} 40. Rxg4 {[%emt 0:01:05]} hxg4+ {[%emt 0:00:11]} 41. Kh4 {[%emt 0:00:04]} Rg2 {[%emt 0:00:06]} 42. a4 {[%emt 0:00:30]} Rxh2+ {[%emt 0:02:45]} 43. Kg3 {[%emt 0:00:07]} Rh3+ {[%emt 0:00:04]} 44. Kxg4 {[%emt 0:00:23]} Rf3 {[%emt 0:00:05]} 45. Re5 {[%emt 0:00:06]} Rxf2 {[%emt 0:00:05]} 46. Rxe4 {[%emt 0:00:03]} Ra2 {[%emt 0:00:06]} 47. b5 {[%emt 0:00:06]} Rb2 {[%emt 0:00:04]} 48. Rc4 {[%emt 0:00:09]} Kg7 {[%emt 0:00:03]} 49. Rc6 {[%emt 0:00:20]} Rb4+ {[%emt 0:00:05]} 50. Kg5 {[%emt 0:00:04]} Rxa4 {[%emt 0:00:06]} 51. Rc7+ {[%emt 0:00:05]} Kf8 {[%emt 0:00:04]} 52. b6 {[%emt 0:00:12]} Rb4 {[%emt 0:00:03]} 53. b7 {[%emt 0:00:07]} Rb5+ {[%emt 0:00:05]} 54. Kh6 {[%emt 0:00:07]} Kg8 {[%emt 0:00:12]} 55. Kxg6 {[%emt 0:00:11]} Rb6+ {[%emt 0:00:04]} 56. Kf5 {[%emt 0:00:06]} Kf8 {[%emt 0:00:03]} 57. e4 {[%emt 0:00:04]} Ke8 {[%emt 0:00:03]} 58. Rc8+ {[%emt 0:00:05]} Kd7 {[%emt 0:00:03]} 59. b8=R {[%emt 0:00:06]} Rh6 {[%emt 0:00:11]} 60. Rg8 {[%emt 0:00:05]} Rh5+ {[%emt 0:00:08]} 61. Rg5 {[%emt 0:00:05]} Rh7 {[%emt 0:00:03]} 62. Rb7+ {[%emt 0:00:06]} Kd6 {[%emt 0:00:05]} 63. Rg6+ {[%emt 0:00:06]} Kc5 {[%emt 0:00:04]} 64. Rxh7 {[%emt 0:00:05]} Kd4 {[%emt 0:00:03]} 65. e5 {[%emt 0:00:06]} Kd5 {[%emt 0:00:02]} 66. Rd7+ {[%emt 0:00:05]} Kc5 {[%emt 0:00:03]} 67. e6 {[%emt 0:00:06]} Kc6 {[%emt 0:00:02]} 68. Rg8 {[%emt 0:00:04]} Kb6 {[%emt 0:00:08]} 69. Rc8 {[%emt 0:00:05]} Kb5 {[%emt 0:00:00]} 70. Rb7+ {[%emt 0:00:05]} Ka6 {[%emt 0:00:04]} 71. Rb3 {[%emt 0:00:07]} Ka7 {[%emt 0:00:03]} 72. Rc4 {[%emt 0:00:06]} Ka6 {[%emt 0:00:09]} 73. Ra4# {[%emt 0:00:04]} 1-0

[Event "48th Indian U15-ch Open 2023"]
[Site "Jalgaon"]
[Date "2024.02.04"]
[Round "11.3"]
[White "Samyak Dharewa"]
[Black "Md Imran"]
[Result "1-0"]
[ECO "B99"]
[WhiteElo "1939"]
[BlackElo "2174"]
[Annotator "RC"]
[PlyCount "77"]
[EventDate "2023.12.30"]
[EventType "swiss"]
[EventCountry "IND"]
[SourceTitle "playchess.com"]
[Source "ChessBase"]
[SourceQuality "1"]
[TimeControl "5400+30"]

1. e4 {[%emt 0:00:03]} c5 {[%emt 0:00:06]} 2. Nf3 {[%emt 0:00:04]} d6 {[%emt 0:00:07]} 3. d4 {[%emt 0:00:06]} cxd4 {[%emt 0:00:04]} 4. Nxd4 {[%emt 0:00:04]} Nf6 {[%emt 0:00:06]} 5. Nc3 {[%emt 0:00:15]} a6 {[%emt 0:00:04]} 6. Bg5 {[%emt 0:00:23]} e6 {[%emt 0:00:07]} 7. f4 {[%emt 0:00:07]} Be7 {[%emt 0:00:08]} 8. Qf3 {[%emt 0:00:11]} Nbd7 {[%emt 0:00:02]} 9. O-O-O {[%emt 0:00:52]} h6 {[%emt 0:00:01]} 10. Bh4 {[%emt 0:00:34]} Qc7 {[%emt 0:00:02]} 11. Bd3 {[%emt 0:00:32]} g5 {[%emt 0:00:50]} 12. fxg5 {[%emt 0:00:18]} Ne5 {[%emt 0:00:02]} 13. Qe2 {[%emt 0:00:21]} Nfg4 {[%emt 0:00:11]} 14. Nf3 {[%emt 0:00:24]} Nxf3 {[%emt 0:02:11]} 15. Qxf3 {[%emt 0:07:12]} hxg5 {[%emt 0:06:02]} 16. Bg3 {[%emt 0:00:12]} Ne5 {[%emt 0:00:10]} 17. Bxe5 {[%emt 0:00:11]} dxe5 {[%emt 0:00:02]} 18. Rdf1 {[%emt 0:00:13]} Rh7 {[%emt 0:03:08]} 19. h4 {[%emt 0:00:17]} gxh4 {[%emt 0:07:06]} 20. Qg4 {[%emt 0:00:08]} Bf8 {[%emt 0:10:33]} 21. Rxh4 {[%emt 0:07:48]} Rg7 {[%emt 0:03:22]} 22. Qh3 {[%emt 0:01:45]} Qe7 {[%emt 0:01:14]} 23. Rg4 {[%emt 0:05:15]} Rxg4 {[%emt 0:02:24]} 24. Qxg4 {[%emt 0:00:08]} Bh6+ {[%emt 0:00:09]} 25. Kb1 {[%emt 0:00:58]} Qg5 {[%emt 0:01:08]} 26. Qf3 {[%emt 0:02:03]} Qg7 {[%emt 0:01:10]} 27. Qf2 {[%emt 0:10:11]} Bd7 {[%emt 0:01:12]} 28. Be2 {[%emt 0:04:52]} Qf8 {[%emt 0:14:30]} 29. Qb6 {[%emt 0:04:48]} Bc6 {[%emt 0:11:44]} 30. Bh5 {[%emt 0:00:54]} Bf4 {[%emt 0:00:06]} 31. g3 {[%emt 0:03:16]} Qh8 {[%emt 0:00:08]} 32. Bxf7+ {[%emt 0:05:55]} Kxf7 {[%emt 0:00:01]} 33. gxf4 {[%emt 0:00:11]} Ke8 {[%emt 0:01:49]} 34. Qc7 {[%emt 0:01:59]} exf4 {[%emt 0:00:18]} 35. Nd5 {[%emt 0:02:15]} exd5 {[%emt 0:01:43]} 36. exd5 {[%emt 0:00:31]} Qf6 {[%emt 0:01:36]} 37. dxc6 {[%emt 0:06:24]} bxc6 {[%emt 0:00:04]} 38. Rg1 {[%emt 0:00:36]} Kf8 {[%emt 0:02:44]} 39. Qh7 {[%emt 0:00:11]} 1-0

[Event "48th Indian U15-ch Open 2023"]
[Site "Jalgaon"]
[Date "2024.02.04"]
[Round "11.4"]
[White "Vivaan Vijay Saraogi"]
[Black "Rohith S"]
[Result "1-0"]
[ECO "B94"]
[WhiteElo "1982"]
[BlackElo "1757"]
[Annotator "RC"]
[PlyCount "87"]
[EventDate "2023.12.30"]
[EventType "swiss"]
[EventCountry "IND"]
[SourceTitle "playchess.com"]
[Source "ChessBase"]
[SourceQuality "1"]
[TimeControl "5400+30"]

1. e4 {[%emt 0:00:39]} c5 {[%emt 0:00:57]} 2. Nf3 {[%emt 0:00:11]} d6 {[%emt 0:00:13]} 3. d4 {[%emt 0:00:45]} cxd4 {[%emt 0:00:12]} 4. Nxd4 {[%emt 0:00:04]} Nf6 {[%emt 0:00:10]} 5. Nc3 {[%emt 0:00:12]} a6 {[%emt 0:00:05]} 6. Bg5 {[%emt 0:00:10]} Nbd7 {[%emt 0:00:19]} 7. f4 {[%emt 0:01:32]} Qc7 {[%emt 0:00:12]} 8. Qf3 {[%emt 0:00:14]} b5 {[%emt 0:00:41]} 9. O-O-O {[%emt 0:01:05]} Bb7 {[%emt 0:00:12]} 10. Bd3 {[%emt 0:00:12]} g6 {[%emt 0:00:55]} 11. Rhe1 {[%emt 0:03:55]} Bg7 {[%emt 0:01:38]} 12. Nd5 {[%emt 0:00:19]} Nxd5 {[%emt 0:12:17]} 13. exd5 {[%emt 0:00:07]} Nf6 {[%emt 0:06:34]} 14. Nc6 {[%emt 0:03:23]} Bxc6 {[%emt 0:09:12]} 15. dxc6 {[%emt 0:00:03]} O-O {[%emt 0:08:39]} 16. h4 {[%emt 0:22:15]} Rac8 {[%emt 0:24:44]} 17. h5 {[%emt 0:04:31]} Qxc6 {[%emt 0:08:07]} 18. Qxc6 {[%emt 0:00:32]} Rxc6 {[%emt 0:00:01]} 19. h6 {[%emt 0:00:06]} Bh8 {[%emt 0:00:33]} 20. Rxe7 {[%emt 0:00:03]} Nd5 {[%emt 0:09:56]} 21. Rb7 {[%emt 0:21:35]} Rc7 {[%emt 0:13:27]} 22. Rxc7 {[%emt 0:00:20]} Nxc7 {[%emt 0:00:02]} 23. Be7 {[%emt 0:03:31]} Rc8 {[%emt 0:00:40]} 24. Be4 {[%emt 0:15:07]} f5 {[%emt 0:02:09]} 25. Bc6 {[%emt 0:03:05]} Kf7 {[%emt 0:00:32]} 26. Bxd6 {[%emt 0:00:02]} Rd8 {[%emt 0:00:28]} 27. Bxc7 {[%emt 0:01:37]} Bxb2+ {[%emt 0:00:10]} 28. Kxb2 {[%emt 0:00:02]} Rxd1 {[%emt 0:00:08]} 29. Be5 {[%emt 0:00:02]} Rh1 {[%emt 0:01:14]} 30. Bd5+ {[%emt 0:00:07]} Ke7 {[%emt 0:00:17]} 31. Bg7 {[%emt 0:00:41]} Rh4 {[%emt 0:00:19]} 32. Be5 {[%emt 0:13:35]} Rxh6 {[%emt 0:00:14]} 33. Bb7 {[%emt 0:00:06]} a5 {[%emt 0:01:07]} 34. a4 {[%emt 0:00:12]} bxa4 {[%emt 0:00:28]} 35. c4 {[%emt 0:00:01]} g5 {[%emt 0:00:34]} 36. c5 {[%emt 0:00:18]} gxf4 {[%emt 0:00:31]} 37. c6 {[%emt 0:01:11]} f3 {[%emt 0:00:31]} 38. gxf3 {[%emt 0:00:52]} a3+ {[%emt 0:00:18]} 39. Kxa3 {[%emt 0:00:41]} Rxc6 {[%emt 0:00:41]} 40. Bxc6 {[%emt 0:00:01]} h5 {[%emt 0:00:16]} 41. f4 {[%emt 0:00:39]} h4 {[%emt 0:00:05]} 42. Bg2 {[%emt 0:00:05]} Kf7 {[%emt 0:00:05]} 43. Bh3 {[%emt 0:00:08]} Kg6 {[%emt 0:00:04]} 44. Ka4 {[%emt 0:00:06]} 1-0

[Event "48th Indian U15-ch Open 2023"]
[Site "Jalgaon"]
[Date "2024.02.04"]
[Round "11.5"]
[White "Bivor Adak"]
[Black "Mrithyunjay Mahadevan"]
[Result "1/2-1/2"]
[ECO "A36"]
[WhiteElo "1791"]
[BlackElo "1944"]
[Annotator "RC"]
[PlyCount "83"]
[EventDate "2023.12.30"]
[EventType "swiss"]
[EventCountry "IND"]
[SourceTitle "playchess.com"]
[Source "ChessBase"]
[SourceQuality "1"]
[TimeControl "5400+30"]

1. Nf3 {[%emt 0:00:11]} g6 {[%emt 0:00:07]} 2. c4 {[%emt 0:02:12]} c5 {[%emt 0:00:29]} 3. Nc3 {[%emt 0:00:54]} Bg7 {[%emt 0:00:14]} 4. g3 {[%emt 0:00:36]} Nc6 {[%emt 0:00:22]} 5. Bg2 {[%emt 0:00:58]} e6 {[%emt 0:00:45]} 6. e3 {[%emt 0:02:21]} Nge7 {[%emt 0:00:07]} 7. d4 {[%emt 0:02:19]} cxd4 {[%emt 0:00:15]} 8. Nxd4 {[%emt 0:00:22]} a6 {[%emt 0:08:32]} 9. O-O {[%emt 0:01:05]} O-O {[%emt 0:00:39]} 10. b3 {[%emt 0:06:46]} Rb8 {[%emt 0:18:58]} 11. Bb2 {[%emt 0:05:59]} Nxd4 {[%emt 0:00:12]} 12. exd4 {[%emt 0:00:08]} b5 {[%emt 0:00:06]} 13. cxb5 {[%emt 0:06:21]} axb5 {[%emt 0:00:08]} 14. Qd2 {[%emt 0:02:35]} d5 {[%emt 0:01:03]} 15. Rfd1 {[%emt 0:01:34]} Nc6 {[%emt 0:01:30]} 16. Ne2 {[%emt 0:00:19]} b4 {[%emt 0:01:21]} 17. Nf4 {[%emt 0:03:38]} Qb6 {[%emt 0:04:20]} 18. Rac1 {[%emt 0:04:46]} Rd8 {[%emt 0:02:56]} 19. Rc5 {[%emt 0:06:37]} Bf8 {[%emt 0:01:13]} 20. Rc2 {[%emt 0:00:56]} Bb7 {[%emt 0:02:00]} 21. Qe3 {[%emt 0:02:46]} Ne7 {[%emt 0:05:46]} 22. g4 {[%emt 0:01:53]} Ra8 {[%emt 0:02:00]} 23. Ba1 {[%emt 0:00:19]} Rdc8 {[%emt 0:00:21]} 24. Rdc1 {[%emt 0:03:57]} Bh6 {[%emt 0:03:35]} 25. h4 {[%emt 0:01:54]} Qd6 {[%emt 0:10:19]} 26. g5 {[%emt 0:00:07]} Nf5 {[%emt 0:00:29]} 27. Qd2 {[%emt 0:09:33]} Bf8 {[%emt 0:00:13]} 28. h5 {[%emt 0:00:06]} Be7 {[%emt 0:06:34]} 29. Nd3 {[%emt 0:01:09]} gxh5 {[%emt 0:02:56]} 30. Ne5 {[%emt 0:00:13]} Rxc2 {[%emt 0:09:11]} 31. Rxc2 {[%emt 0:00:14]} Rc8 {[%emt 0:00:34]} 32. Rxc8+ {[%emt 0:00:13]} Bxc8 {[%emt 0:00:02]} 33. Qe2 {[%emt 0:00:16]} Qc7 {[%emt 0:04:25]} 34. Bb2 {[%emt 0:01:33]} Bxg5 {[%emt 0:00:54]} 35. Qxh5 {[%emt 0:00:08]} Bf6 {[%emt 0:02:10]} 36. Bh3 {[%emt 0:03:31]} Ng7 {[%emt 0:00:46]} 37. Qh6 {[%emt 0:00:17]} Be7 {[%emt 0:02:24]} 38. Bc1 {[%emt 0:02:03]} f6 {[%emt 0:00:16]} 39. Nd3 {[%emt 0:00:05]} Qc3 {[%emt 0:01:40]} 40. Qe3 {[%emt 0:00:06]} Ba6 {[%emt 0:01:32]} 41. Bxe6+ {[%emt 0:01:08]} Kf8 {[%emt 0:00:05]} 42. Nf4 {[%emt 0:00:10]} 1/2-1/2

[Event "48th Indian U15-ch Open 2023"]
[Site "Jalgaon"]
[Date "2024.02.04"]
[Round "11.6"]
[White "Vatsal Singla"]
[Black "Jain, Kushagra"]
[Result "1/2-1/2"]
[ECO "B22"]
[WhiteElo "1714"]
[BlackElo "1804"]
[Annotator "NA RC"]
[PlyCount "60"]
[EventDate "2023.12.30"]
[EventType "swiss"]
[EventCountry "IND"]
[SourceTitle "playchess.com"]
[Source "ChessBase"]
[SourceQuality "1"]
[TimeControl "5400+30"]

1. e4 {[%emt 0:00:16]} c5 {[%emt 0:00:36]} 2. c3 {[%emt 0:00:06]} d5 {[%emt 0:00:09]} 3. exd5 {[%emt 0:00:11]} Nf6 {[%emt 0:00:08]} 4. Qa4+ {[%emt 0:03:49]} Nbd7 {[%emt 0:02:24]} 5. Qb3 {[%emt 0:01:51]} Nb6 {[%emt 0:02:30]} 6. Bb5+ {[%emt 0:04:54]} Bd7 {[%emt 0:00:16]} 7. c4 {[%emt 0:01:25]} e6 {[%emt 0:04:57]} 8. dxe6 {[%emt 0:01:14]} fxe6 {[%emt 0:00:37]} 9. Nf3 {[%emt 0:07:08]} Bd6 {[%emt 0:01:53]} 10. d3 {[%emt 0:13:48]} O-O {[%emt 0:08:57]} 11. Bxd7 {[%emt 0:02:21]} Nbxd7 {[%emt 0:09:25]} 12. Bg5 {[%emt 0:11:06]} Ne5 {[%emt 0:10:25]} 13. Nbd2 {[%emt 0:03:00]} Qc7 {[%emt 0:01:53]} 14. Nxe5 {[%emt 0:06:02]} Bxe5 {[%emt 0:00:03]} 15. Bxf6 {[%emt 0:00:47]} Rxf6 {[%emt 0:02:44]} 16. Ne4 {[%emt 0:00:54]} Rg6 {[%emt 0:01:20]} 17. g3 {[%emt 0:00:34]} Bd4 {[%emt 0:00:49]} 18. h4 {[%emt 0:16:05]} Rf8 {[%emt 0:13:30]} 19. Qc2 {[%emt 0:08:42]} e5 {[%emt 0:16:37]} 20. O-O {[%emt 0:02:24]} (20. Rd1 $14) 20... Qd8 {[%emt 0:15:03]} 21. Qe2 {[%emt 0:06:31]} Qxh4 {[%emt 0:03:03]} 22. Kg2 {[%emt 0:00:01]} Qf4 {[%emt 0:02:09]} 23. Rab1 {[%emt 0:00:47]} (23. Rh1 $5 {[%cal Re2h5]}) 23... a5 {[%emt 0:00:51]} 24. a3 {[%emt 0:02:22]} b6 {[%emt 0:00:59]} 25. Rh1 {[%emt 0:01:26]} h6 {[%emt 0:00:31]} 26. Rhf1 {[%emt 0:02:09]} Qf5 $11 {[%emt 0:00:43]} 27. Rh1 {[%emt 0:01:45]} Qf4 {[%emt 0:00:21]} 28. Rhf1 {[%emt 0:00:05]} Qf5 {[%emt 0:00:07]} 29. Rh1 {[%emt 0:00:05]} Qf4 {[%emt 0:00:03]} 30. Rhf1 {[%emt 0:00:06]} Qf5 {[%emt 0:00:02]} 1/2-1/2

[Event "48th Indian U15-ch Open 2023"]
[Site "Jalgaon"]
[Date "2024.02.04"]
[Round "11.7"]
[White "Madhvendra Pratap Sharma"]
[Black "Tirth Jayeshkumar Parmar"]
[Result "1/2-1/2"]
[ECO "B35"]
[WhiteElo "1803"]
[BlackElo "1612"]
[Annotator "NA RC"]
[PlyCount "80"]
[EventDate "2023.12.30"]
[EventType "swiss"]
[EventCountry "IND"]
[SourceTitle "playchess.com"]
[Source "ChessBase"]
[SourceQuality "1"]
[TimeControl "5400+30"]

1. e4 {[%emt 0:00:27]} c5 {[%emt 0:00:15]} 2. Nf3 {[%emt 0:00:06]} Nc6 {[%emt 0:00:06]} 3. d4 {[%emt 0:00:08]} cxd4 {[%emt 0:00:07]} 4. Nxd4 {[%emt 0:00:14]} g6 {[%emt 0:00:07]} 5. Nc3 {[%emt 0:00:06]} Bg7 {[%emt 0:00:21]} 6. Be3 {[%emt 0:00:08]} Nf6 {[%emt 0:00:16]} 7. Bc4 {[%emt 0:00:06]} O-O {[%emt 0:00:10]} 8. Bb3 {[%emt 0:00:04]} a5 {[%emt 0:00:13]} 9. Ndb5 {[%emt 0:07:14]} a4 {[%emt 0:09:40]} 10. Nxa4 {[%emt 0:02:33]} Qa5+ {[%emt 0:01:53]} 11. Nac3 {[%emt 0:02:51]} Nxe4 {[%emt 0:01:27]} 12. O-O {[%emt 0:01:13]} Nxc3 {[%emt 0:02:35]} 13. Nxc3 {[%emt 0:00:57]} d6 {[%emt 0:08:17]} 14. Qd2 {[%emt 0:03:26]} Qh5 {[%emt 0:12:27]} 15. f4 {[%emt 0:04:38]} Be6 {[%emt 0:03:53]} 16. Rae1 {[%emt 0:07:21]} Na5 {[%emt 0:06:11]} 17. Bd4 {[%emt 0:06:03]} Nxb3 {[%emt 0:04:16]} 18. axb3 {[%emt 0:00:24]} Bh6 {[%emt 0:07:45]} 19. Ne4 {[%emt 0:09:23]} Qd5 {[%emt 0:05:37]} 20. c4 {[%emt 0:10:35]} Qc6 {[%emt 0:01:06]} 21. Ng5 {[%emt 0:05:09]} Bxg5 {[%emt 0:04:05]} 22. fxg5 {[%emt 0:01:19]} Qd7 {[%emt 0:00:45]} 23. Qe3 {[%emt 0:11:35]} b5 {[%emt 0:03:11]} 24. Rf4 {[%emt 0:11:22]} Rfe8 {[%emt 0:04:41]} 25. Re4 {[%emt 0:04:12]} Rab8 {[%emt 0:02:06]} 26. c5 {[%emt 0:07:07]} dxc5 {[%emt 0:00:54]} 27. Bxc5 {[%emt 0:00:58]} Rbc8 {[%emt 0:03:53]} 28. b4 {[%emt 0:01:11]} Rcd8 {[%emt 0:03:22]} 29. Rd4 {[%emt 0:02:19]} Qb7 {[%emt 0:01:54]} 30. Red1 {[%emt 0:01:00]} (30. Qe5 $5 {[%cal Rd4d8]} Ra8 31. Rde4 $14) 30... Qc7 {[%emt 0:02:06]} 31. R1d2 {[%emt 0:01:15]} Bf5 {[%emt 0:01:46]} 32. Rxd8 {[%emt 0:00:29]} Rxd8 {[%emt 0:00:01] [#]} 33. Qe5 $16 {[%emt 0:00:32] Deflection} Qc8 {[%emt 0:02:44]} 34. Rxd8+ {[%emt 0:00:32]} Qxd8 {[%emt 0:00:01]} 35. h3 {[%emt 0:00:27]} f6 {[%emt 0:02:22]} 36. Qe3 {[%emt 0:00:32]} Kf7 {[%emt 0:00:58]} 37. gxf6 {[%emt 0:00:27]} exf6 {[%emt 0:00:09]} 38. Qh6 {[%emt 0:00:33]} g5 {[%emt 0:00:56]} 39. Qh5+ {[%emt 0:00:08]} Bg6 {[%emt 0:00:17]} 40. Qe2 {[%emt 0:00:07]} Qd7 {[%emt 0:00:30]} 1/2-1/2

[Event "48th Indian U15-ch Open 2023"]
[Site "Jalgaon"]
[Date "2024.02.04"]
[Round "11.8"]
[White "Sherla Prathamesh"]
[Black "Shaik Sumer Arsh"]
[Result "1-0"]
[ECO "A22"]
[WhiteElo "1726"]
[BlackElo "2255"]
[Annotator "RC"]
[PlyCount "105"]
[EventDate "2023.12.30"]
[EventType "swiss"]
[EventCountry "IND"]
[SourceTitle "playchess.com"]
[Source "ChessBase"]
[SourceQuality "1"]
[TimeControl "5400+30"]

1. c4 {[%emt 0:00:11]} e5 {[%emt 0:00:07]} 2. Nc3 {[%emt 0:00:17]} Nf6 {[%emt 0:00:07]} 3. g3 {[%emt 0:00:06]} Bb4 {[%emt 0:00:07]} 4. e4 {[%emt 0:00:30]} O-O {[%emt 0:00:15]} 5. Nge2 {[%emt 0:00:34]} d6 {[%emt 0:04:18]} 6. Bg2 {[%emt 0:00:15]} Bxc3 {[%emt 0:14:15]} 7. bxc3 {[%emt 0:02:21]} c6 {[%emt 0:14:30]} 8. O-O {[%emt 0:01:39]} Nbd7 {[%emt 0:10:00]} 9. d3 {[%emt 0:06:09]} Qc7 {[%emt 0:04:28]} 10. a4 {[%emt 0:03:35]} Re8 {[%emt 0:04:05]} 11. h3 {[%emt 0:07:52]} b6 {[%emt 0:02:52]} 12. f4 {[%emt 0:03:57]} Bb7 {[%emt 0:01:33]} 13. g4 {[%emt 0:06:26]} Nf8 {[%emt 0:07:12]} 14. Ng3 {[%emt 0:06:11]} N6d7 {[%emt 0:14:17]} 15. Ra2 {[%emt 0:12:17]} exf4 {[%emt 0:07:39]} 16. Bxf4 {[%emt 0:01:46]} Ng6 {[%emt 0:00:16]} 17. Raf2 {[%emt 0:02:37]} Nxf4 {[%emt 0:00:35]} 18. Rxf4 {[%emt 0:00:02]} f6 {[%emt 0:00:31]} 19. h4 {[%emt 0:03:11]} Ne5 {[%emt 0:02:50]} 20. Nf5 {[%emt 0:06:12]} Bc8 {[%emt 0:01:10]} 21. g5 {[%emt 0:02:08]} Bxf5 {[%emt 0:00:50]} 22. Rxf5 {[%emt 0:02:17]} fxg5 {[%emt 0:00:22]} 23. hxg5 {[%emt 0:01:29]} Qe7 {[%emt 0:03:55]} 24. Qd2 {[%emt 0:03:17]} Rad8 {[%emt 0:00:49]} 25. d4 {[%emt 0:06:04]} Ng6 {[%emt 0:04:31]} 26. e5 {[%emt 0:04:25]} dxe5 {[%emt 0:00:36]} 27. Bxc6 {[%emt 0:01:10]} Rf8 {[%emt 0:00:25]} 28. Bd5+ {[%emt 0:02:40]} Kh8 {[%emt 0:00:01]} 29. Rf7 {[%emt 0:01:21]} Qd6 {[%emt 0:01:23]} 30. Kh1 {[%emt 0:03:26]} a5 {[%emt 0:00:45]} 31. Qe3 {[%emt 0:01:12]} Rfe8 {[%emt 0:00:39]} 32. Qh3 {[%emt 0:01:58]} Rf8 {[%emt 0:00:31]} 33. R1f2 {[%emt 0:08:11]} Rxf7 {[%emt 0:00:17]} 34. Rxf7 {[%emt 0:00:31]} Rf8 {[%emt 0:00:40]} 35. Qf5 {[%emt 0:00:46]} exd4 {[%emt 0:00:26]} 36. Rxf8+ {[%emt 0:00:41]} Qxf8 {[%emt 0:00:01]} 37. Qxf8+ {[%emt 0:00:02]} Nxf8 {[%emt 0:00:01]} 38. cxd4 {[%emt 0:00:02]} h6 {[%emt 0:01:39]} 39. gxh6 {[%emt 0:01:20]} Ng6 {[%emt 0:00:27]} 40. c5 {[%emt 0:00:33]} bxc5 {[%emt 0:00:13]} 41. dxc5 {[%emt 0:00:01]} Ne7 {[%emt 0:00:30]} 42. Be4 {[%emt 0:00:53]} gxh6 {[%emt 0:00:16]} 43. c6 {[%emt 0:00:01]} Kg7 {[%emt 0:00:12]} 44. c7 {[%emt 0:00:06]} Kf6 {[%emt 0:00:08]} 45. Bb7 {[%emt 0:00:02]} Ke5 {[%emt 0:00:15]} 46. c8=Q {[%emt 0:00:09]} Nxc8 {[%emt 0:00:04]} 47. Bxc8 {[%emt 0:00:06]} Kf4 {[%emt 0:00:25]} 48. Kg2 {[%emt 0:00:11]} h5 {[%emt 0:00:07]} 49. Kh3 {[%emt 0:00:11]} Kg5 {[%emt 0:01:17]} 50. Ba6 {[%emt 0:00:14]} Kf5 {[%emt 0:00:09]} 51. Kh4 {[%emt 0:00:06]} Kg6 {[%emt 0:00:05]} 52. Bd3+ {[%emt 0:00:10]} Kh6 {[%emt 0:00:17]} 53. Be4 {[%emt 0:00:07]} 1-0